bitfinex/quotes_BTCUSD_20221001
["timestamp","ask_amount","ask_price","bid_price","bid_amount"]
[1664582613008,0.257164,19428.0,19427.0,0.51173144]
[1664582614054,0.328164,19428.0,19427.0,0.52173144]
[1664582614519,0.3738379,19428.0,19427.0,0.52173144]
[1664582614737,0.7310509,19428.0,19427.0,0.01]
[1664582615075,0.3738379,19428.0,19427.0,0.01]
[1664582615334,0.3738379,19428.0,19426.0,0.643535]
[1664582615558,0.3028379,19428.0,19426.0,1.15526644]
[1664582616042,0.0257164,19427.0,19426.0,1.15526644]
[1664582616258,0.0257164,19427.0,19426.0,0.78020144]
[1664582616495,0.0257164,19427.0,19426.0,1.16626644]
[1664582616720,0.33844332,19427.0,19426.0,1.16626644]
[1664582616946,0.0257164,19427.0,19426.0,1.16626644]
[1664582617378,0.385746,19428.0,19426.0,1.15526644]
[1664582617514,0.385746,19428.0,19427.0,0.218204]
[1664582617721,0.385746,19428.0,19426.0,1.15526644]
[1664582618199,0.464746,19428.0,19426.0,1.15526644]
[1664582619383,0.385746,19428.0,19426.0,1.15526644]
[1664582620052,0.464746,19428.0,19426.0,1.15526644]
[1664582620278,0.54249329,19428.0,19426.0,1.15526644]
[1664582620707,0.464746,19428.0,19426.0,1.15526644]
[1664582621379,0.385746,19428.0,19426.0,1.15526644]
[1664582621757,0.385746,19428.0,19426.0,1.15526544]
[1664582622197,0.464746,19428.0,19426.0,1.15526544]
[1664582623342,0.385746,19428.0,19426.0,1.15526544]
[1664582624273,1.7,19426.0,19422.0,0.26]
[1664582624515,0.87477925,19425.0,19422.0,0.26]
[1664582624767,0.87477925,19424.0,19422.0,0.26]
[1664582624994,0.66993992,19423.0,19422.0,0.26]
[1664582625473,0.357213,19423.0,19422.0,0.26]
[1664582625925,0.44133692,19424.0,19422.0,0.26]
[1664582626163,0.69093992,19423.0,19422.0,0.335]
[1664582626385,0.42234669,19423.0,19422.0,0.335]
[1664582626838,0.06513369,19423.0,19422.0,0.335]
[1664582627066,0.73507361,19423.0,19422.0,0.335]
[1664582627563,0.35686061,19423.0,19422.0,0.26]
[1664582627782,0.71407361,19423.0,19422.0,0.26]
[1664582628081,0.40134669,19423.0,19422.0,0.26]
[1664582628310,0.76207361,19423.0,19422.0,0.26]
[1664582628755,0.44934669,19423.0,19422.0,0.26]
[1664582628975,0.76207361,19423.0,19422.0,0.26]
[1664582629436,0.71407361,19423.0,19422.0,0.26]
[1664582630112,0.09213369,19423.0,19422.0,0.26]
[1664582630340,0.76207361,19423.0,19422.0,0.26]
[1664582630801,0.44934669,19423.0,19422.0,0.26]
[1664582631019,0.76207361,19423.0,19422.0,0.26]
[1664582631495,0.40134669,19423.0,19422.0,0.26]
[1664582632187,0.44934669,19423.0,19422.0,0.26]
[1664582632440,0.76207361,19423.0,19422.0,0.26]
[1664582632675,0.09213369,19423.0,19422.0,0.26]
[1664582632896,0.40486061,19423.0,19422.0,0.25991538]
[1664582633174,0.09213369,19423.0,19422.0,0.25991538]
[1664582633391,0.44934669,19423.0,19422.0,0.25991538]
[1664582633597,0.40134669,19423.0,19422.0,0.25991538]
[1664582634282,0.40234669,19423.0,19422.0,0.28891538]
[1664582634510,0.358213,19423.0,19422.0,0.28891538]
[1664582635132,0.001,19423.0,19422.0,0.28891538]
[1664582635468,0.357213,19423.0,19422.0,0.25991538]
[1664582635920,0.25722,19424.0,19422.0,0.25991538]
[1664582636135,0.56994692,19424.0,19422.0,0.25991538]
[1664582636472,0.365213,19423.0,19422.0,0.45267938]
[1664582637393,0.45872899,19423.0,19422.0,0.45267938]
[1664582637615,0.45072899,19423.0,19422.0,0.38867938]
[1664582638270,0.10151599,19423.0,19422.0,0.45267938]
[1664582638519,0.45872899,19423.0,19422.0,0.45267938]
[1664582639205,0.77145591,19423.0,19422.0,0.45267938]
[1664582639398,0.76345591,19423.0,19422.0,0.38867938]
[1664582640313,0.008,19423.0,19422.0,0.45267938]
[1664582640824,0.365213,19423.0,19422.0,0.45267938]
[1664582641541,0.66993992,19423.0,19422.0,0.38867938]
[1664582641756,0.357213,19423.0,19422.0,0.38867938]
[1664582641981,0.56994692,19424.0,19422.0,0.38867938]
[1664582642215,0.67793992,19423.0,19422.0,0.45267938]
[1664582642425,0.365213,19423.0,19422.0,0.45267938]
[1664582643133,0.67793992,19423.0,19422.0,0.32391538]
[1664582643423,0.45872899,19423.0,19422.0,0.32391538]
[1664582643643,0.45072899,19423.0,19422.0,0.25991538]
[1664582644307,0.45872899,19423.0,19422.0,0.32391538]
[1664582644596,0.008,19423.0,19422.0,0.32391538]
[1664582644816,0.008,19423.0,19422.0,0.54219238]
[1664582645045,0.008,19423.0,19422.0,0.32391538]
[1664582645267,0.008,19423.0,19422.0,1.44323238]
[1664582645488,0.25722,19424.0,19422.0,1.54930982]
[1664582645693,0.25722,19424.0,19422.0,1.28971938]
[1664582646403,0.26522,19424.0,19422.0,1.35371938]
[1664582647084,0.26522,19424.0,19423.0,0.218265]
[1664582647531,0.25722,19424.0,19422.0,1.28971938]
[1664582647764,0.25722,19424.0,19423.0,0.218263]
[1664582647990,0.25722,19424.0,19422.0,1.28971938]
[1664582648206,0.30122,19424.0,19422.0,1.28971938]
[1664582649591,0.25722,19424.0,19422.0,1.28971938]
[1664582650293,0.26522,19424.0,19422.0,1.35371938]
[1664582650512,0.357213,19423.0,19422.0,0.83883938]
[1664582650730,0.26522,19424.0,19422.0,0.83883938]
[1664582650980,0.57794692,19424.0,19422.0,0.83883938]
[1664582651425,0.25722,19424.0,19422.0,0.77483938]
[1664582651867,0.56994692,19424.0,19422.0,0.77483938]
[1664582652083,0.25722,19424.0,19422.0,0.77483938]
[1664582652306,0.26522,19424.0,19422.0,0.83883938]
[1664582653680,0.25722,19424.0,19422.0,0.77483938]
[1664582653918,0.25722,19424.0,19423.0,0.218265]
[1664582654145,0.56994692,19424.0,19422.0,0.77483938]
[1664582654419,0.56994692,19424.0,19422.0,0.83883938]
[1664582654420,0.26522,19424.0,19422.0,0.83883938]
[1664582655538,0.25722,19424.0,19422.0,0.77483938]
[1664582656033,0.25722,19424.0,19423.0,0.218263]
[1664582656263,0.26522,19424.0,19422.0,0.83883938]
[1664582657163,0.26522,19424.0,19423.0,0.218263]
[1664582657418,0.26522,19424.0,19422.0,0.83883938]
[1664582657628,0.25722,19424.0,19422.0,0.77483938]
[1664582658228,0.357215,19423.0,19422.0,0.83883938]
[1664582658408,0.26522,19424.0,19422.0,1.35057082]
[1664582658654,0.26522,19424.0,19423.0,0.64678852]
[1664582658878,0.26522,19424.0,19423.0,0.71999544]
[1664582659101,0.26522,19424.0,19423.0,0.51173144]
[1664582659310,0.13661,19424.0,19423.0,0.71999344]
[1664582659549,0.12861,19424.0,19423.0,0.51173144]
[1664582659830,0.12861,19424.0,19423.0,0.70187622]
[1664582660255,0.14861,19424.0,19423.0,0.77687622]
[1664582660947,0.14861,19424.0,19423.0,0.98513822]
[1664582661184,0.14861,19424.0,19423.0,0.77687622]
[1664582661649,0.12861,19424.0,19423.0,0.70187622]
[1664582662079,0.12861,19424.0,19423.0,0.51173144]
[1664582662314,0.14861,19424.0,19423.0,1.18673144]
[1664582662554,0.14861,19424.0,19423.0,1.39499344]
[1664582662773,0.14861,19424.0,19423.0,1.70772036]
[1664582662999,0.14850594,19424.0,19423.0,1.70772036]
[1664582663231,0.14850594,19424.0,19423.0,2.04321104]
[1664582663740,0.12850594,19424.0,19423.0,1.36821104]
[1664582663968,0.12850594,19424.0,19423.0,1.96821104]
[1664582664415,0.12850594,19424.0,19423.0,2.04621104]
[1664582664857,0.12850594,19424.0,19423.0,1.13348412]
[1664582665566,0.12850594,19424.0,19423.0,0.84722212]
[1664582665784,0.12850594,19424.0,19423.0,1.05548412]
[1664582666290,0.12850594,19424.0,19423.0,1.13348412]
[1664582667539,0.12850594,19424.0,19423.0,1.05548412]
[1664582667766,0.12850594,19424.0,19423.0,0.84722212]
[1664582668208,0.12850594,19424.0,19423.0,1.05548412]
[1664582668428,0.12850594,19424.0,19423.0,1.13348412]
[1664582668676,0.12850594,19424.0,19423.0,1.73348412]
[1664582669580,0.12850594,19424.0,19423.0,1.65548412]
[1664582670347,0.12850594,19424.0,19423.0,1.73348412]
[1664582671556,0.12850594,19424.0,19423.0,1.65548412]
[1664582672456,0.12850594,19424.0,19423.0,1.13348412]
[1664582672676,0.12850594,19424.0,19423.0,1.73348412]
[1664582673214,0.12850594,19424.0,19423.0,1.13348412]
[1664582673651,0.12850594,19424.0,19423.0,1.05548412]
[1664582674362,0.12850594,19424.0,19423.0,1.13348412]
[1664582675734,0.12850594,19424.0,19423.0,0.84722212]
[1664582675958,0.12850594,19424.0,19423.0,1.05548412]
[1664582676403,0.12850594,19424.0,19423.0,0.58973144]
[1664582676625,0.12850594,19424.0,19423.0,0.79799444]
[1664582677572,0.12850594,19424.0,19423.0,0.71999444]
[1664582678476,0.12850594,19424.0,19423.0,0.79799444]
[1664582679592,0.12850594,19424.0,19423.0,0.71999444]
[1664582680457,0.12850594,19424.0,19423.0,0.79799444]
[1664582681952,0.12850594,19424.0,19423.0,0.71999444]
[1664582682391,0.12850594,19424.0,19423.0,0.79799444]
[1664582683299,0.12850594,19424.0,19423.0,0.58973144]
[1664582683530,0.12850594,19424.0,19423.0,0.79799444]
[1664582683759,0.12850594,19424.0,19423.0,0.71999444]
[1664582684228,0.12850594,19424.0,19423.0,0.71499444]
[1664582684446,0.12850594,19424.0,19423.0,0.79299444]
[1664582685349,0.12850594,19424.0,19423.0,0.58473144]
[1664582685578,0.12850594,19424.0,19423.0,0.71499344]
[1664582686479,0.12850594,19424.0,19423.0,0.79299344]
[1664582686775,0.12850594,19424.0,19423.0,1.64988783]
[1664582687666,0.12850594,19424.0,19423.0,1.57188783]
[1664582688312,0.12850594,19424.0,19423.0,1.64988783]
[1664582689308,0.12850594,19424.0,19423.0,1.96261475]
[1664582689527,0.12850594,19424.0,19423.0,1.64988783]
[1664582689745,0.12850594,19424.0,19423.0,1.57188783]
[1664582690553,0.12850594,19424.0,19423.0,1.64988783]
[1664582690792,0.12850594,19424.0,19423.0,1.96261475]
[1664582691025,0.257207,19425.0,19423.0,2.96881475]
[1664582691268,0.257207,19425.0,19424.0,1.7458304]
[1664582691511,0.128605,19425.0,19424.0,2.0040804]
[1664582691729,0.257191,19426.0,19424.0,2.0540804]
[1664582691959,0.128596,19426.0,19425.0,0.76922144]
[1664582692184,0.128596,19426.0,19425.0,1.02745644]
[1664582692431,0.207596,19426.0,19425.0,1.02745644]
[1664582693533,0.207596,19426.0,19425.0,1.62745644]
[1664582693747,0.128596,19426.0,19425.0,1.62745644]
[1664582694445,0.207596,19426.0,19425.0,1.41922144]
[1664582694679,0.207596,19426.0,19425.0,1.92893023]
[1664582695791,0.128596,19426.0,19425.0,1.92893023]
[1664582696525,0.207596,19426.0,19425.0,1.92893023]
[1664582697674,0.128596,19426.0,19425.0,1.92893023]
[1664582698395,0.207596,19426.0,19425.0,1.92893023]
[1664582699500,0.128569,19430.0,19426.0,0.260134]
[1664582699757,0.0967,19433.0,19428.0,0.25745]
[1664582700010,0.25711,19433.0,19429.0,0.84943166]
[1664582700213,0.25711,19433.0,19430.0,1.68185666]
[1664582700448,0.25711,19433.0,19431.0,0.900614]
[1664582700449,0.385664,19433.0,19431.0,0.900614]
[1664582700914,0.31195522,19432.0,19431.0,0.257364]
[1664582701146,0.73893214,19432.0,19431.0,0.257364]
[1664582701380,0.38171714,19432.0,19431.0,0.257364]
[1664582701596,0.73893214,19432.0,19431.0,0.257364]
[1664582701857,0.42697692,19432.0,19431.0,0.514684]
[1664582702077,0.38171714,19432.0,19431.0,0.514684]
[1664582702300,0.73893214,19432.0,19431.0,0.514684]
[1664582702516,0.73893214,19432.0,19431.0,0.581684]
[1664582702738,0.38171714,19432.0,19431.0,0.581684]
[1664582703179,0.42697692,19432.0,19431.0,0.581684]
[1664582703411,0.06976192,19432.0,19431.0,0.581684]
[1664582703631,0.357215,19432.0,19431.0,0.514684]
[1664582704401,0.357215,19432.0,19431.0,0.581684]
[1664582705279,0.66917022,19432.0,19431.0,0.581684]
[1664582705770,0.66917022,19432.0,19431.0,0.514684]
[1664582705994,0.357215,19432.0,19431.0,0.514684]
[1664582706218,0.46269842,19432.0,19431.0,0.514684]
[1664582706442,0.46269842,19432.0,19431.0,0.581684]
[1664582707733,0.46269842,19432.0,19431.0,0.514684]
[1664582707963,0.357215,19432.0,19431.0,0.514684]
[1664582708318,0.357215,19432.0,19431.0,0.581684]
[1664582709289,0.47719749,19432.0,19431.0,0.581684]
[1664582709730,0.47719749,19432.0,19431.0,0.514684]
[1664582710391,0.47719749,19432.0,19431.0,0.581684]
[1664582711069,0.11998249,19432.0,19431.0,0.581684]
[1664582711300,0.47719749,19432.0,19431.0,0.581684]
[1664582711800,0.47719749,19432.0,19431.0,0.514684]
[1664582712464,0.47719749,19432.0,19431.0,0.581684]
[1664582713363,0.47719749,19432.0,19431.0,0.841684]
[1664582713819,0.47719749,19432.0,19431.0,0.774684]
[1664582714578,0.47719749,19432.0,19431.0,0.841684]
[1664582715880,0.47719749,19432.0,19431.0,0.774684]
[1664582716093,0.11998249,19432.0,19431.0,0.982833]
[1664582716326,0.11998249,19432.0,19431.0,0.774684]
[1664582716554,0.47719749,19432.0,19431.0,0.841684]
[1664582716804,0.11998249,19432.0,19431.0,0.841684]
[1664582717103,0.11998249,19432.0,19431.0,1.406325]
[1664582717345,0.11998249,19432.0,19431.0,1.456325]
[1664582717807,0.11998249,19432.0,19431.0,1.389325]
[1664582718134,0.47719749,19432.0,19431.0,1.389325]
[1664582718356,0.11998249,19432.0,19431.0,1.389325]
[1664582718584,0.11998249,19432.0,19431.0,1.456325]
[1664582718798,0.11998249,19432.0,19431.0,1.6662954]
[1664582719006,0.11998249,19432.0,19431.0,1.8744444]
[1664582719473,0.11998249,19432.0,19431.0,1.6662954]
[1664582719728,0.11998249,19432.0,19431.0,1.5992954]
[1664582719959,0.11989242,19432.0,19431.0,1.5992954]
[1664582720504,0.11989242,19432.0,19431.0,1.6582954]
[1664582720963,0.11989242,19432.0,19431.0,2.37817584]
[1664582721640,0.11989242,19432.0,19431.0,2.91917584]
[1664582721855,0.11989242,19432.0,19431.0,2.31917584]
[1664582722080,0.11989242,19432.0,19431.0,2.71102684]
[1664582722302,0.11989242,19432.0,19431.0,2.91917584]
[1664582722538,0.11989242,19432.0,19431.0,2.71102684]
[1664582722752,0.11989242,19432.0,19431.0,2.91917584]
[1664582722962,0.11989242,19432.0,19431.0,2.71102684]
[1664582723184,0.11989242,19432.0,19431.0,2.91917584]
[1664582723396,0.11989242,19432.0,19431.0,2.11102684]
[1664582724111,0.11989242,19432.0,19431.0,2.01102684]
[1664582724259,0.11989242,19432.0,19431.0,1.80105644]
[1664582725102,0.11989242,19432.0,19431.0,1.85105644]
[1664582725536,0.11989242,19432.0,19431.0,1.80105644]
[1664582727117,0.11989242,19432.0,19431.0,1.97805644]
[1664582727773,0.11989242,19432.0,19431.0,1.80105644]
[1664582727950,0.11989242,19432.0,19431.0,1.85105644]
[1664582728213,0.11989242,19432.0,19431.0,1.80105644]
[1664582730529,0.11989242,19432.0,19431.0,1.86005644]
[1664582732003,0.11989242,19432.0,19431.0,1.80105644]
[1664582732679,0.11989242,19432.0,19431.0,1.96005644]
[1664582733104,0.11989242,19432.0,19431.0,1.86005644]
[1664582733335,0.11989242,19432.0,19431.0,2.13613696]
[1664582733558,0.11989242,19432.0,19431.0,2.44428596]
[1664582733768,0.11989242,19432.0,19431.0,2.38528596]
[1664582733984,0.11989242,19432.0,19431.0,2.17713696]
[1664582734541,0.11989242,19432.0,19431.0,2.23613696]
[1664582735998,0.11989242,19432.0,19431.0,2.17713696]
[1664582736433,0.11989242,19432.0,19431.0,2.38528596]
[1664582736649,0.11989242,19432.0,19431.0,2.46228596]
[1664582736884,0.11989242,19432.0,19431.0,2.25413696]
[1664582737972,0.11989242,19432.0,19431.0,2.17713696]
[1664582738423,0.11989242,19432.0,19431.0,2.38528596]
[1664582738632,0.11989242,19432.0,19431.0,2.25413696]
[1664582739716,0.11989242,19432.0,19431.0,2.85413696]
[1664582740028,0.11989242,19432.0,19431.0,2.98528596]
[1664582740671,0.11989242,19432.0,19431.0,3.06228596]
[1664582741146,0.001,19436.0,19435.0,0.46632589]
[1664582741386,0.001,19436.0,19435.0,2.2853368]
[1664582742063,0.001,19436.0,19435.0,1.31919091]
[1664582742269,0.001,19436.0,19435.0,1.60813833]
[1664582742589,0.001,19436.0,19435.0,1.91919091]
[1664582742810,0.001,19436.0,19435.0,1.97119091]
[1664582743986,0.001,19436.0,19435.0,1.91919091]
[1664582744651,0.001,19436.0,19435.0,1.97619091]
[1664582745953,0.001,19436.0,19435.0,1.91919091]
[1664582746611,0.001,19436.0,19435.0,1.97619091]
[1664582748047,0.001,19436.0,19435.0,1.45704433]
[1664582748258,0.001,19436.0,19435.0,1.40004433]
[1664582748478,0.001,19436.0,19435.0,1.60813833]
[1664582748696,0.001,19436.0,19435.0,1.66513833]
[1664582748922,0.001,19436.0,19435.0,1.97619091]
[1664582750126,0.001,19436.0,19435.0,1.91919091]
[1664582750772,0.001,19436.0,19435.0,1.97619091]
[1664582751216,0.001,19436.0,19435.0,2.08239091]
[1664582751889,0.001,19436.0,19435.0,2.02539091]
[1664582752792,0.001,19436.0,19435.0,2.08539091]
[1664582753924,0.001,19436.0,19435.0,2.02539091]
[1664582754630,0.001,19442.0,19441.0,0.05018]
[1664582754865,0.001,19444.0,19443.0,0.05018]
[1664582755299,0.001,19444.0,19443.0,2.08721402]
[1664582755306,0.001,19444.0,19443.0,1.98101402]
[1664582755528,0.001,19444.0,19443.0,2.88411542]
[1664582755759,0.001,19444.0,19443.0,1.66996144]
[1664582755980,0.10811,19444.0,19443.0,0.89747244]
[1664582756220,0.05517,19444.0,19443.0,0.89747244]
[1664582756449,0.001,19444.0,19443.0,0.89747244]
[1664582756670,0.001,19444.0,19443.0,0.94647244]
[1664582757135,0.05517,19444.0,19443.0,0.17758]
[1664582758084,0.05517,19444.0,19443.0,0.12858]
[1664582758547,0.412385,19444.0,19443.0,0.12858]
[1664582758792,0.001,19444.0,19443.0,0.18258]
[1664582759048,0.001,19444.0,19443.0,0.440561]
[1664582759491,0.001,19444.0,19443.0,0.23258]
[1664582759940,0.001,19444.0,19443.0,0.489741]
[1664582760196,0.001,19444.0,19443.0,0.435741]
[1664582760841,0.001,19444.0,19443.0,0.489741]
[1664582761062,0.001,19444.0,19443.0,0.539741]
[1664582761313,0.001,19444.0,19443.0,0.489741]
[1664582761541,0.001,19444.0,19443.0,0.697721]
[1664582761764,0.001,19444.0,19443.0,0.539741]
[1664582761994,0.001,19444.0,19443.0,0.693721]
[1664582762215,0.001,19444.0,19443.0,0.485741]
[1664582762919,0.001,19444.0,19443.0,0.539741]
[1664582763370,0.001,19444.0,19443.0,0.74772]
[1664582763602,0.001,19444.0,19443.0,1.05147244]
[1664582763840,0.001,19444.0,19443.0,2.02889508]
[1664582764080,0.001,19444.0,19443.0,0.89747244]
[1664582764308,0.001,19444.0,19443.0,0.94747244]
[1664582764546,0.001,19444.0,19443.0,1.20545144]
[1664582764792,0.001,19444.0,19443.0,1.05847244]
[1664582765328,0.001,19444.0,19443.0,1.57566837]
[1664582765550,0.001,19444.0,19443.0,2.50778549]
[1664582765992,0.001,19444.0,19443.0,2.44678549]
[1664582766455,0.130471,19445.0,19444.0,0.05018]
[1664582766680,0.130471,19445.0,19444.0,1.39417638]
[1664582766903,0.130471,19445.0,19444.0,1.60214338]
[1664582767123,0.130471,19445.0,19444.0,1.91319596]
[1664582767580,0.130471,19445.0,19444.0,1.55196338]
[1664582768777,0.130471,19445.0,19444.0,1.60396338]
[1664582769221,0.130471,19445.0,19444.0,1.91501596]
[1664582769437,0.130471,19445.0,19444.0,1.60396338]
[1664582770101,0.130471,19445.0,19444.0,1.55196338]
[1664582770928,0.130471,19445.0,19444.0,1.60396338]
[1664582771839,0.130471,19445.0,19444.0,1.39599638]
[1664582772074,0.130471,19445.0,19444.0,0.95196338]
[1664582772538,0.130471,19445.0,19444.0,1.55196338]
[1664582772758,0.130471,19445.0,19444.0,1.60396338]
[1664582774120,0.130471,19445.0,19444.0,1.55196338]
[1664582774856,0.130471,19445.0,19444.0,1.60396338]
[1664582775766,0.125471,19445.0,19444.0,1.60396338]
[1664582776000,0.125471,19445.0,19444.0,0.71969844]
[1664582776222,0.125471,19445.0,19444.0,0.51173144]
[1664582776223,0.120471,19445.0,19444.0,0.51173144]
[1664582776440,0.120471,19445.0,19444.0,0.71969844]
[1664582776903,0.120471,19445.0,19444.0,0.77169844]
[1664582777126,0.120471,19445.0,19444.0,0.99059278]
[1664582777567,0.120471,19445.0,19444.0,1.59059278]
[1664582778018,0.120471,19445.0,19444.0,1.31969844]
[1664582778263,0.120471,19445.0,19444.0,0.71969844]
[1664582778481,0.120471,19445.0,19444.0,1.31969844]
[1664582778857,0.120471,19445.0,19444.0,1.37169844]
[1664582780044,0.120471,19445.0,19444.0,1.31969844]
[1664582780250,0.120471,19445.0,19444.0,1.60339278]
[1664582780942,0.120471,19445.0,19444.0,1.65539278]
[1664582782135,0.120471,19445.0,19444.0,1.60339278]
[1664582782800,0.120471,19445.0,19444.0,1.65539278]
[1664582783285,0.130462,19446.0,19445.0,1.75018]
[1664582783504,0.002,19446.0,19445.0,3.89787192]
[1664582783729,0.002,19446.0,19445.0,3.73979012]
[1664582784896,0.002,19446.0,19445.0,3.79379012]
[1664582785371,0.131975,19447.0,19446.0,0.05018]
[1664582785599,0.131975,19447.0,19446.0,2.03223229]
[1664582785856,0.131975,19447.0,19446.0,2.24017129]
[1664582786784,0.131975,19447.0,19446.0,2.55122387]
[1664582787052,0.131975,19447.0,19446.0,2.61822387]
[1664582787278,0.130446,19448.0,19446.0,3.15942387]
[1664582787279,0.002,19448.0,19446.0,3.15942387]
[1664582787535,0.001,19451.0,19450.0,0.05018]
[1664582787753,0.001,19451.0,19450.0,1.78637794]
[1664582788442,0.001,19451.0,19450.0,1.47559544]
[1664582788793,0.001,19451.0,19450.0,1.55459544]
[1664582789028,0.001,19451.0,19450.0,1.81003338]
[1664582789241,0.001,19451.0,19450.0,2.12081588]
[1664582789727,0.001,19452.0,19451.0,0.05018]
[1664582789931,0.001,19452.0,19451.0,1.08056494]
[1664582790148,0.001,19452.0,19451.0,1.68056494]
[1664582790362,0.001,19452.0,19451.0,2.04712426]
[1664582790577,0.002,19453.0,19452.0,0.05018]
[1664582790824,0.002,19453.0,19452.0,1.57849394]
[1664582791037,0.002,19453.0,19452.0,1.70471483]
[1664582791259,1.0,19459.0,19454.0,0.43385361]
[1664582791486,1.0,19459.0,19458.0,0.66753144]
[1664582791714,0.0022,19462.0,19461.0,0.05018]
[1664582791940,0.0022,19462.0,19461.0,0.61191144]
[1664582792160,0.001,19466.0,19461.0,0.56173144]
[1664582792390,0.357215,19465.0,19462.0,0.51173144]
[1664582792607,0.09203,19466.0,19462.0,0.51173144]
[1664582792834,0.09203,19466.0,19462.0,0.59173144]
[1664582793062,0.357215,19465.0,19462.0,0.59173144]
[1664582793279,0.3930365,19465.0,19462.0,0.59173144]
[1664582793552,0.357215,19464.0,19462.0,0.59173144]
[1664582793789,0.0358215,19465.0,19462.0,0.59173144]
[1664582793997,0.0358215,19465.0,19462.0,0.51173144]
[1664582794229,0.09203,19466.0,19462.0,0.51173144]
[1664582794439,0.128337,19465.0,19462.0,0.51173144]
[1664582794880,0.357215,19464.0,19462.0,0.56273144]
[1664582795152,0.128337,19465.0,19462.0,0.56273144]
[1664582795379,0.128337,19465.0,19464.0,0.20769]
[1664582795530,0.128337,19465.0,19464.0,0.51173144]
[1664582795750,0.485552,19465.0,19464.0,0.51173144]
[1664582796027,0.128337,19465.0,19464.0,0.51173144]
[1664582796639,0.128337,19465.0,19464.0,0.77173144]
[1664582796889,0.128337,19465.0,19464.0,0.82073144]
[1664582797591,0.485552,19465.0,19464.0,0.82073144]
[1664582798240,0.485552,19465.0,19464.0,0.26]
[1664582798465,0.5470404,19465.0,19464.0,0.26]
[1664582798910,0.5470404,19465.0,19464.0,0.327]
[1664582799356,2.58364544,19465.0,19464.0,0.327]
[1664582800014,0.38367361,19461.0,19455.0,1.3548]
[1664582800256,1.4,19459.0,19455.0,0.51173144]
[1664582800460,0.87269013,19458.0,19455.0,0.51173144]
[1664582800675,0.20483933,19457.0,19455.0,0.27221144]
[1664582800891,0.28183933,19458.0,19455.0,0.30121144]
[1664582801424,0.357215,19457.0,19455.0,0.029]
[1664582801648,0.20538,19458.0,19456.0,0.51173144]
[1664582802081,0.12838,19458.0,19456.0,0.51173144]
[1664582802777,1.37460466,19463.0,19456.0,0.51173144]
[1664582802778,0.69802405,19463.0,19456.0,1.31000244]
[1664582803012,0.077,19458.0,19456.0,2.10492244]
[1664582803222,0.077,19458.0,19456.0,0.77002244]
[1664582803223,0.205385,19458.0,19456.0,0.77002244]
[1664582803683,0.205385,19458.0,19457.0,0.128529]
[1664582803916,0.33377,19458.0,19457.0,0.128529]
[1664582804132,0.25677,19458.0,19457.0,0.128529]
[1664582804840,0.613985,19458.0,19457.0,0.128529]
[1664582805050,0.33277,19458.0,19457.0,0.151529]
[1664582805615,0.33277,19458.0,19457.0,0.359313]
[1664582805838,0.33277,19458.0,19457.0,0.151529]
[1664582806321,0.25677,19458.0,19457.0,0.128529]
[1664582806927,0.33277,19458.0,19457.0,0.151529]
[1664582807362,0.33277,19458.0,19457.0,0.359312]
[1664582807703,0.33277,19458.0,19457.0,0.151529]
[1664582808086,0.25677,19458.0,19457.0,0.388529]
[1664582808986,0.33277,19458.0,19457.0,0.151529]
[1664582809844,0.33277,19458.0,19457.0,0.66326044]
[1664582810085,0.33277,19458.0,19457.0,0.97104344]
[1664582810306,0.33277,19458.0,19457.0,0.74026044]
[1664582810307,0.25677,19458.0,19457.0,0.74026044]
[1664582810670,0.25677,19458.0,19457.0,0.94804444]
[1664582810881,0.33277,19458.0,19457.0,0.71326044]
[1664582811109,0.33277,19458.0,19457.0,1.08231428]
[1664582811568,0.33277,19458.0,19457.0,1.13231428]
[1664582812030,0.33277,19458.0,19457.0,0.92453028]
[1664582812241,0.25677,19458.0,19457.0,0.74026044]
[1664582812953,0.33377,19458.0,19457.0,0.76526044]
[1664582813612,0.89582433,19458.0,19457.0,0.153529]
[1664582813842,0.690985,19458.0,19457.0,0.025]
[1664582814058,0.4028685,19458.0,19457.0,0.025]
[1664582814275,0.33377,19458.0,19457.0,0.025]
[1664582814510,0.33377,19458.0,19457.0,0.232784]
[1664582814737,0.33377,19458.0,19456.0,0.128535]
[1664582814738,0.25677,19458.0,19456.0,0.128535]
[1664582814977,0.25677,19458.0,19456.0,0.51401]
[1664582815188,0.33377,19458.0,19457.0,0.025]
[1664582816379,0.33377,19458.0,19457.0,0.74451544]
[1664582816600,0.33377,19458.0,19457.0,0.53673144]
[1664582817040,0.41077,19458.0,19457.0,0.61173144]
[1664582817280,0.41077,19458.0,19457.0,0.81951544]
[1664582817959,0.41077,19458.0,19457.0,0.56173144]
[1664582818187,0.41077,19458.0,19457.0,0.99451544]
[1664582818408,0.25677,19458.0,19457.0,0.96951544]
[1664582818965,0.25677,19458.0,19457.0,0.76173144]
[1664582818967,0.25677,19458.0,19457.0,0.275]
[1664582818968,0.56428633,19458.0,19457.0,0.275]
[1664582819190,0.716662,19458.0,19457.0,0.275]
[1664582819416,0.691662,19458.0,19457.0,0.275]
[1664582820072,0.665985,19458.0,19457.0,0.275]
[1664582820307,0.23177,19458.0,19457.0,0.25]
[1664582820973,0.30277,19458.0,19457.0,0.262]
[1664582821701,0.659985,19458.0,19457.0,0.262]
[1664582821920,0.7388211,19458.0,19457.0,0.262]
[1664582822598,0.6678211,19458.0,19457.0,0.25]
[1664582822829,0.97929682,19458.0,19457.0,0.25]
[1664582823053,1.02729682,19458.0,19457.0,0.25]
[1664582823734,0.67008182,19458.0,19457.0,0.25]
[1664582823979,1.02729682,19458.0,19457.0,0.25]
[1664582824191,0.97929682,19458.0,19457.0,0.25]
[1664582825132,1.05829682,19458.0,19457.0,0.25]
[1664582825670,0.70108182,19458.0,19457.0,0.25]
[1664582825897,1.05829682,19458.0,19457.0,0.25]
[1664582826243,0.97929682,19458.0,19457.0,0.25]
[1664582826965,1.05829682,19458.0,19457.0,0.25]
[1664582828416,0.97929682,19458.0,19457.0,0.25]
[1664582829031,0.7468211,19458.0,19457.0,0.25]
[1664582829243,0.3896061,19458.0,19457.0,0.25]
[1664582829470,0.31077,19458.0,19457.0,0.25]
[1664582829891,0.667985,19458.0,19457.0,0.25]